bitfinex-derivatives/quotes_BTCF0:USTF0_20250722
["timestamp","ask_amount","ask_price","bid_price","bid_amount"]
[1753226602100,0.95900046,120200.0,120190.0,0.08485835]
[1753226602400,0.95900046,120200.0,120190.0,0.01042289]
[1753226602900,0.95900046,120200.0,120190.0,0.06996737]
[1753226605004,0.95900046,120200.0,120190.0,0.09271405]
[1753226605801,1.54260046,120200.0,120190.0,0.09271405]
[1753226607608,1.54239913,120200.0,120190.0,0.09271405]
[1753226608607,1.54239913,120200.0,120190.0,0.08296565]
[1753226608914,1.54243913,120200.0,120190.0,0.09271436]
[1753226609405,1.54243913,120200.0,120190.0,0.08296565]
[1753226609602,1.54243913,120200.0,120190.0,0.09271436]
[1753226611210,1.6110812,120200.0,120190.0,0.09271436]
[1753226613214,1.6110812,120200.0,120190.0,0.03316988]
[1753226613415,1.6101612,120200.0,120190.0,0.03316988]
[1753226613713,1.6100812,120200.0,120190.0,0.03316988]
[1753226614107,1.6100812,120200.0,120190.0,0.23434988]
[1753226614308,1.6100812,120200.0,120190.0,0.37217436]
[1753226614505,1.6098212,120200.0,120190.0,0.40248436]
[1753226615006,1.6100812,120200.0,120190.0,0.40248436]
[1753226617115,1.0277212,120200.0,120190.0,0.56881436]
[1753226617413,1.6095612,120200.0,120190.0,0.40248436]
[1753226617614,1.6095612,120200.0,120190.0,0.38948608]
[1753226617818,1.6095612,120200.0,120190.0,0.37973737]
[1753226618008,1.6095612,120200.0,120190.0,0.40248403]
[1753226618410,1.6095612,120200.0,120190.0,0.40248401]
[1753226618714,1.6095612,120200.0,120190.0,0.40248402]
[1753226621523,1.6095612,120200.0,120190.0,0.56881402]
[1753226621921,1.6095612,120200.0,120190.0,0.50926954]
[1753226622325,1.6095612,120200.0,120190.0,0.34293954]
[1753226622618,1.6095612,120200.0,120190.0,0.50926954]
[1753226623221,1.6095612,120200.0,120190.0,0.34293954]
[1753226623718,1.0277212,120200.0,120190.0,0.34293954]
[1753226623919,1.6088412,120200.0,120190.0,0.31262954]
[1753226624220,1.6088412,120200.0,120190.0,0.17402954]
[1753226626124,1.6089612,120200.0,120190.0,0.17402954]
[1753226626721,1.6089612,120200.0,120190.0,0.16103145]
[1753226626922,1.6089612,120200.0,120190.0,0.1740295]
[1753226628124,1.6089612,120200.0,120190.0,0.24846496]
[1753226629223,1.0277212,120200.0,120190.0,0.24846496]
[1753226629623,1.6086412,120200.0,120190.0,0.24846496]
[1753226630226,1.6086412,120200.0,120190.0,0.1740295]
[1753226630429,1.6086412,120200.0,120190.0,0.0331695]
[1753226630624,1.0277212,120200.0,120190.0,0.0331695]
[1753226630828,1.6086412,120200.0,120190.0,0.0331695]
[1753226631128,1.6086412,120200.0,120190.0,0.1750095]
[1753226632428,1.6086412,120200.0,120190.0,0.15226289]
[1753226632628,1.6086412,120200.0,120190.0,0.17500975]
[1753226632928,1.0277212,120200.0,120190.0,0.17500975]
[1753226633133,1.6086412,120200.0,120190.0,0.17500975]
[1753226633331,1.6086412,120200.0,120190.0,0.24944521]
[1753226633629,1.6086412,120200.0,120190.0,0.17500975]
[1753226634933,1.6086412,120200.0,120190.0,0.24944521]
[1753226636036,1.6086412,120200.0,120190.0,0.23969656]
[1753226636236,1.6086412,120200.0,120190.0,0.24944521]
[1753226639235,1.6086412,120200.0,120190.0,0.24944522]
[1753226640640,1.6086412,120200.0,120190.0,0.17500976]
[1753226640945,1.6086412,120200.0,120190.0,0.23468534]
[1753226641437,1.6086412,120200.0,120190.0,0.23468544]
[1753226644039,1.6086412,120200.0,120190.0,0.08309674]
[1753226644341,1.6086412,120200.0,120190.0,0.09284544]
[1753226646341,0.3595339,120180.0,120170.0,0.19033]
[1753226646644,1.60029559,120180.0,120170.0,0.19033]
[1753226646844,1.60185283,120180.0,120170.0,0.29477079]
[1753226647840,1.60185283,120180.0,120170.0,0.36399379]
[1753226648046,1.60185283,120180.0,120170.0,0.3875027]
[1753226648844,1.60185283,120180.0,120170.0,0.28306191]
[1753226649044,1.60185283,120180.0,120170.0,0.23457191]
[1753226649045,1.02097283,120180.0,120170.0,0.23457191]
[1753226649243,1.60185283,120180.0,120170.0,0.23457191]
[1753226649446,2.21878192,120180.0,120170.0,0.02550891]
[1753226649635,2.21878192,120180.0,120170.0,0.005]
[1753226650249,1.60185283,120180.0,120170.0,0.005]
[1753226650745,2.21878192,120180.0,120170.0,0.005]
[1753226651748,1.63790192,120180.0,120170.0,0.005]
[1753226651942,2.21878192,120180.0,120170.0,0.005]
[1753226652144,1.03047679,120170.0,120160.0,0.16473091]
[1753226652346,1.03047679,120170.0,120160.0,0.02022091]
[1753226652948,1.03203403,120170.0,120160.0,0.02022091]
[1753226653350,1.03203403,120170.0,120160.0,8.327e-05]
[1753226654048,1.03303403,120170.0,120160.0,0.00608327]
[1753226655247,0.41610494,120170.0,120160.0,8.327e-05]
[1753226655447,1.61395403,120170.0,120160.0,0.00108327]
[1753226655648,1.61395403,120170.0,120160.0,0.14559327]
[1753226655846,1.03303403,120170.0,120160.0,0.14559327]
[1753226656048,1.61391403,120170.0,120160.0,0.14559327]
[1753226656350,1.61391403,120170.0,120160.0,0.20516735]
[1753226656953,1.03303403,120170.0,120160.0,0.20516735]
[1753226657145,1.61395403,120170.0,120160.0,0.20516735]
[1753226657346,1.03303403,120170.0,120160.0,0.20516735]
[1753226657551,1.61391403,120170.0,120160.0,0.20516735]
[1753226658354,1.61391403,120170.0,120160.0,0.22792074]
[1753226659251,1.03303403,120170.0,120160.0,0.22792076]
[1753226659555,1.61391403,120170.0,120160.0,0.22792076]
[1753226659755,1.61391403,120170.0,120160.0,0.16834668]
[1753226660154,1.61391403,120170.0,120160.0,0.22792076]
[1753226661154,1.61391403,120170.0,120160.0,0.16834668]
[1753226661355,1.61391403,120170.0,120160.0,0.22792076]
[1753226661555,0.827131,120170.0,120160.0,0.33485668]
[1753226661753,0.661281,120170.0,120160.0,0.56080196]
[1753226662054,1.276251,120170.0,120160.0,0.50122788]
[1753226662250,0.612731,120170.0,120160.0,0.53804855]
[1753226662554,0.37455797,120170.0,120160.0,0.56080065]
[1753226662754,0.580201,120170.0,120160.0,0.56080065]
[1753226663055,0.580201,120170.0,120160.0,0.47847447]
[1753226663256,1.02397084,120170.0,120160.0,0.57569482]
[1753226663657,0.44313084,120170.0,120160.0,0.57569482]
[1753226665559,0.44313084,120170.0,120160.0,0.5756945]
[1753226666360,0.47566084,120170.0,120160.0,0.5756945]
[1753226668461,0.47566084,120170.0,120160.0,0.56269416]
[1753226668662,0.47566084,120170.0,120160.0,0.57569404]
[1753226671063,0.52379084,120170.0,120160.0,0.57569404]
[1753226671362,0.52379084,120170.0,120160.0,0.50122428]
[1753226671663,0.52379084,120170.0,120160.0,0.50122382]
[1753226672062,0.52379084,120170.0,120160.0,0.4914741]
[1753226672263,0.52379084,120170.0,120160.0,0.50122382]
[1753226672865,0.16891454,120170.0,120160.0,0.62566667]
[1753226673060,0.44313044,120170.0,120160.0,0.62566667]
[1753226674666,0.44313044,120170.0,120160.0,0.62566547]
[1753226675267,0.44313044,120170.0,120160.0,0.70013523]
[1753226676164,0.44313044,120170.0,120160.0,0.62566547]
[1753226676566,0.47566044,120170.0,120160.0,0.62566547]
[1753226677669,0.47566044,120170.0,120160.0,0.70014389]
[1753226679572,0.44313044,120170.0,120160.0,0.70014389]
[1753226680575,0.44313044,120170.0,120160.0,1.28078389]
[1753226681176,0.44313044,120170.0,120160.0,1.28078382]
[1753226681380,0.44313044,120170.0,120160.0,1.28078372]
[1753226681979,0.47393044,120170.0,120160.0,1.28078372]
[1753226682973,0.47393044,120170.0,120160.0,0.70014372]
[1753226683177,0.47393044,120170.0,120160.0,1.28074372]
[1753226683473,0.52124044,120170.0,120160.0,1.28074372]
[1753226684076,0.52124044,120170.0,120160.0,0.70014372]
[1753226684379,0.59694044,120170.0,120160.0,1.28070372]
[1753226684581,0.59694044,120170.0,120160.0,1.20622531]
[1753226684878,0.59694044,120170.0,120160.0,1.2807118]
[1753226685274,0.73405344,120170.0,120160.0,1.2807118]
[1753226687382,0.73405344,120170.0,120160.0,1.20622531]
[1753226690285,0.73405344,120170.0,120160.0,1.18347732]
[1753226690486,0.73405344,120170.0,120160.0,1.20622544]
[1753226692387,0.73405344,120170.0,120160.0,1.31066623]
[1753226692888,0.72864589,120170.0,120160.0,1.31066623]
[1753226698385,0.81227589,120170.0,120160.0,0.45929424]
[1753226698688,1.39289589,120170.0,120160.0,0.45929424]
[1753226699088,1.39263589,120170.0,120160.0,0.45929424]
[1753226699590,1.39263589,120170.0,120160.0,0.44854505]
[1753226699885,1.39263589,120170.0,120160.0,0.45929621]
[1753226699886,1.40063589,120170.0,120160.0,0.45929621]
[1753226700987,1.41163589,120170.0,120160.0,0.46029621]
[1753226701290,1.41163589,120170.0,120160.0,0.564737]
[1753226701492,0.21330699,120170.0,120160.0,0.7311082]
[1753226701682,0.37220795,120180.0,120170.0,0.4779073]
[1753226701991,0.37219415,120190.0,120180.0,0.4778935]
[1753226702190,0.37199415,120190.0,120180.0,0.50064339]
[1753226702492,0.37199415,120190.0,120180.0,1.27986614]
[1753226702686,0.00027867,120200.0,120190.0,0.1663297]
[1753226702982,0.00027867,120200.0,120190.0,1.20519371]
[1753226702983,0.57772347,120200.0,120190.0,1.20519371]
[1753226703577,0.57772347,120200.0,120190.0,1.26486463]
[1753226704186,0.57772347,120200.0,120190.0,1.20519371]
[1753226704789,0.57772347,120200.0,120190.0,1.20519131]
[1753226704992,0.57772347,120200.0,120190.0,1.21619131]
[1753226705195,0.44044852,120200.0,120190.0,1.21619131]
[1753226705993,0.44044852,120200.0,120190.0,1.21607131]
[1753226706392,0.44044852,120200.0,120190.0,0.63591131]
[1753226706593,0.44044852,120200.0,120190.0,1.21607131]
[1753226707794,0.44044852,120200.0,120190.0,1.20307107]
[1753226707995,0.44044852,120200.0,120190.0,1.2160674]
[1753226708491,7.867e-05,120200.0,120190.0,1.2160674]
[1753226708691,7.867e-05,120200.0,120190.0,1.32050819]
[1753226709192,0.27413262,120200.0,120190.0,1.32050819]
[1753226709795,0.44044852,120200.0,120190.0,1.32050819]
[1753226710088,0.27413262,120200.0,120190.0,1.32050819]
[1753226710292,0.44044852,120200.0,120190.0,1.32050819]
[1753226711001,0.44044852,120200.0,120190.0,1.2160674]
[1753226711696,0.44044852,120200.0,120190.0,1.32050819]
[1753226712188,0.44044852,120200.0,120190.0,0.74034819]
[1753226712393,0.44044852,120200.0,120190.0,1.32042819]
[1753226712595,0.44044852,120200.0,120190.0,1.2159874]
[1753226712989,0.16639457,120200.0,120190.0,1.2159874]
[1753226713189,0.44044852,120200.0,120190.0,1.2159874]
[1753226713497,0.44044852,120200.0,120190.0,0.6359074]
[1753226713692,0.44044852,120200.0,120190.0,1.29032115]
[1753226713892,0.44044852,120200.0,120190.0,1.29032022]
[1753226714199,0.59150852,120200.0,120190.0,1.29032022]
[1753226715896,0.31745457,120200.0,120190.0,1.29032022]
[1753226716095,0.59150852,120200.0,120190.0,1.21598647]
[1753226716896,0.59150852,120200.0,120190.0,1.20623922]
[1753226717196,0.59150852,120200.0,120190.0,1.32042752]
[1753226717390,0.59150852,120200.0,120190.0,1.32038752]
[1753226717588,0.94919247,120200.0,120190.0,0.57401782]
[1753226717788,0.94919247,120200.0,120190.0,1.12393536]
[1753226717990,0.94919247,120200.0,120190.0,1.29026506]
[1753226718501,0.67513852,120200.0,120190.0,1.29026506]
[1753226718795,0.59192852,120200.0,120190.0,1.29026506]
[1753226719498,0.47081852,120200.0,120190.0,1.29022506]
[1753226721894,0.47081842,120200.0,120190.0,1.29022506]
[1753226725398,0.47081842,120200.0,120190.0,1.29022483]
[1753226725605,0.19676447,120200.0,120190.0,1.29022483]
[1753226725808,0.47081842,120200.0,120190.0,1.29022483]
[1753226726102,0.47081842,120200.0,120190.0,1.29022452]
[1753226726605,0.47081842,120200.0,120190.0,1.21590619]
[1753226728705,0.47081842,120200.0,120190.0,1.32034698]
[1753226729301,0.47081842,120200.0,120190.0,0.7403467]
[1753226729493,0.30450262,120200.0,120190.0,1.3202667]
[1753226729905,0.47081842,120200.0,120190.0,1.3202667]
[1753226730106,0.19676447,120200.0,120190.0,1.3202667]
[1753226730306,0.48213925,120210.0,120200.0,0.4814658]
[1753226730496,0.52351565,120210.0,120200.0,1.15851694]
[1753226730700,0.48193925,120210.0,120200.0,1.15851694]
[1753226731102,0.51230925,120210.0,120200.0,1.15851694]
[1753226731301,0.51237443,120210.0,120200.0,1.08412789]
[1753226731607,0.51737443,120210.0,120200.0,1.08412789]
[1753226732297,0.51737443,120210.0,120200.0,1.18856868]
[1753226732501,0.52337443,120210.0,120200.0,1.18856868]
[1753226734011,0.56869443,120210.0,120200.0,1.18856868]
[1753226734304,0.56869443,120210.0,120200.0,1.17557332]
[1753226734512,0.56869443,120210.0,120200.0,1.18856851]
[1753226735010,0.56869443,120210.0,120200.0,1.16582659]
[1753226735214,0.56869443,120210.0,120200.0,1.18856817]
[1753226735512,0.56269443,120210.0,120200.0,1.18856817]
[1753226735703,0.56269443,120210.0,120200.0,1.19356817]
[1753226735907,0.56269443,120210.0,120200.0,1.08912738]
[1753226736213,0.55769443,120210.0,120200.0,1.09212738]
[1753226738112,0.55769443,120210.0,120200.0,1.08238099]
[1753226738416,0.55769443,120210.0,120200.0,1.09212739]
[1753226738715,0.55769443,120210.0,120200.0,1.19638092]
[1753226740514,0.55769443,120210.0,120200.0,1.09212739]
[1753226741214,0.55769443,120210.0,120200.0,1.19638092]
[1753226741409,0.63820443,120210.0,120200.0,0.45014512]
[1753226741614,0.99572838,120210.0,120200.0,0.3451114]
[1753226741816,0.99572838,120210.0,120200.0,0.03074159]
[1753226742221,1.30143443,120210.0,120200.0,0.14414159]
[1753226742407,1.30143443,120210.0,120200.0,0.16706159]
[1753226742613,0.72167443,120210.0,120200.0,0.16706159]
[1753226742813,1.30143443,120210.0,120200.0,0.16706159]
[1753226743117,1.30643443,120210.0,120200.0,0.15906159]
[1753226743418,1.31243443,120210.0,120200.0,0.15906159]
[1753226744219,1.31243443,120210.0,120200.0,0.1590634]
[1753226744522,1.31243443,120210.0,120200.0,0.23352321]
[1753226744721,1.31243443,120210.0,120200.0,0.22377604]
[1753226744918,1.31243443,120210.0,120200.0,0.23352322]
[1753226745620,1.31243443,120210.0,120200.0,0.15906341]
[1753226747219,1.31243443,120210.0,120200.0,0.14931623]
[1753226747419,1.31243443,120210.0,120200.0,0.1590635]
[1753226747620,1.58648838,120210.0,120200.0,0.1590635]
[1753226750230,1.31243443,120210.0,120200.0,0.3253794]
[1753226750823,1.03830048,120210.0,120200.0,0.4136294]
[1753226751023,1.31209443,120210.0,120200.0,0.4907794]
[1753226751426,1.31209443,120210.0,120200.0,0.56523921]
[1753226751931,1.31209443,120210.0,120200.0,0.4907794]
[1753226752132,1.22884443,120210.0,120200.0,0.4907794]
[1753226753026,0.64920443,120210.0,120200.0,0.4907788]
[1753226753228,0.48179113,120210.0,120200.0,0.4680359]
[1753226753430,0.48179113,120210.0,120200.0,0.49077754]
[1753226753620,0.48179113,120210.0,120200.0,1.07041754]
[1753226753820,0.60858113,120210.0,120200.0,1.07041754]
[1753226757431,0.60858113,120210.0,120200.0,1.17467107]
[1753226758931,0.60858113,120210.0,120200.0,1.07041754]
[1753226760535,0.60900113,120210.0,120200.0,1.07041754]
[1753226760736,0.60900113,120210.0,120200.0,1.14482027]
[1753226761229,0.60900113,120210.0,120200.0,0.39886437]
[1753226761430,0.69247113,120210.0,120200.0,0.39886437]
[1753226761634,1.54604508,120210.0,120200.0,0.23346487]
[1753226761836,0.99793718,120210.0,120200.0,0.23346487]
[1753226762036,1.27199113,120210.0,120200.0,0.23346487]
[1753226762237,0.69247113,120210.0,120200.0,0.23346487]
[1753226762438,1.27195113,120210.0,120200.0,0.20578214]
[1753226762638,1.27195113,120210.0,120200.0,0.59503147]
[1753226762831,0.60900113,120210.0,120200.0,0.59503147]
[1753226763030,1.18848113,120210.0,120200.0,0.59503147]
[1753226764937,0.60900113,120210.0,120200.0,0.49077794]
[1753226765440,0.69221113,120210.0,120200.0,0.49077794]
[1753226766139,0.69221113,120210.0,120200.0,0.49077809]
[1753226767943,0.41815718,120210.0,120200.0,0.49077809]
[1753226768242,0.60900113,120210.0,120200.0,0.49077809]
[1753226768941,0.60900113,120210.0,120200.0,0.59503162]
[1753226770744,0.60900113,120210.0,120200.0,0.58203587]
[1753226770942,0.60900113,120210.0,120200.0,0.59503124]
[1753226771438,0.60900113,120210.0,120200.0,0.5652166]
[1753226772646,0.56188113,120210.0,120200.0,0.5652166]
[1753226773038,0.60888113,120210.0,120200.0,0.5652166]
[1753226773345,0.60930113,120210.0,120200.0,0.5652166]
[1753226773846,0.60930113,120210.0,120200.0,0.54247469]
[1753226774045,0.60930113,120210.0,120200.0,0.56521659]
[1753226774547,0.60930113,120210.0,120200.0,1.14453659]
[1753226776848,0.60930113,120210.0,120200.0,1.0700977]
[1753226777446,0.60930113,120210.0,120200.0,0.4907777]
[1753226777748,0.60930113,120210.0,120200.0,1.0700577]
[1753226778248,0.60930113,120210.0,120200.0,1.17431123]
[1753226779242,0.44299913,120210.0,120200.0,1.17431123]
[1753226779546,0.04143518,120210.0,120200.0,0.59503123]
[1753226779749,0.20773728,120210.0,120200.0,1.17427123]
[1753226779949,0.20773728,120210.0,120200.0,1.17426914]
[1753226780249,0.01106518,120210.0,120200.0,1.17426914]
[1753226780450,0.01106518,120210.0,120200.0,1.17001555]
[1753226782355,0.17736728,120210.0,120200.0,1.16997555]
[1753226783253,0.17736728,120210.0,120200.0,1.27422908]
[1753226783449,0.01106518,120210.0,120200.0,1.27422908]
[1753226783651,0.01106518,120210.0,120200.0,1.16997555]
[1753226783850,0.17736728,120210.0,120200.0,1.16997555]
[1753226784755,0.17736728,120210.0,120200.0,1.27422908]
[1753226785153,0.17736728,120210.0,120200.0,1.16997555]
[1753226785954,0.01106518,120210.0,120200.0,1.16997544]
[1753226786859,0.01106518,120210.0,120200.0,1.27422897]
[1753226788561,0.01106518,120210.0,120200.0,1.74702165]
[1753226788864,0.01106518,120210.0,120200.0,1.56826172]
[1753226789055,0.01106518,120210.0,120200.0,1.55851535]
[1753226789261,0.01106518,120210.0,120200.0,1.67251383]
[1753226789766,0.01106518,120210.0,120200.0,1.67251376]
[1753226789958,0.01106518,120210.0,120200.0,1.06353994]
[1753226790264,0.01106518,120210.0,120200.0,1.64257994]
[1753226795166,0.01106518,120210.0,120200.0,1.64257956]
[1753226796258,0.52368895,120220.0,120210.0,0.2612221]
[1753226796259,0.59627265,120220.0,120210.0,0.2612221]
[1753226796468,0.59607265,120220.0,120210.0,0.6145734]
[1753226797461,0.6121388,120220.0,120210.0,0.6155734]
[1753226797667,0.5705651,120220.0,120210.0,0.6155734]
[1753226798163,0.5705651,120220.0,120210.0,0.60258055]
[1753226798370,0.5705651,120220.0,120210.0,0.61557352]
[1753226798573,0.5795651,120220.0,120210.0,0.61657352]
[1753226799170,0.5795651,120220.0,120210.0,0.45027142]
[1753226799471,0.6254151,120220.0,120210.0,0.61657352]
[1753226799669,0.7005251,120220.0,120210.0,0.61657352]
[1753226800769,0.7005251,120220.0,120210.0,1.19541352]
[1753226801267,0.7005251,120220.0,120210.0,1.19541392]
[1753226802871,0.7841551,120220.0,120210.0,0.45027182]
[1753226803168,0.7844151,120220.0,120210.0,0.35010254]
[1753226803370,0.7844151,120220.0,120210.0,0.24584901]
[1753226804668,1.3631751,120220.0,120210.0,0.24584901]
[1753226805369,1.3631751,120220.0,120210.0,0.51640464]
[1753226805564,1.3631751,120220.0,120210.0,0.44206392]
[1753226805764,1.3631751,120220.0,120210.0,0.27576182]
[1753226806166,1.3631751,120220.0,120210.0,0.32102182]
[1753226807072,1.3631751,120220.0,120210.0,0.30802874]
[1753226807273,1.3631351,120220.0,120210.0,0.32102429]
[1753226807466,1.3631351,120220.0,120210.0,0.48732639]
[1753226808366,1.3631351,120220.0,120210.0,0.32102429]
[1753226808567,1.3631351,120220.0,120210.0,0.27576429]
[1753226809074,1.3631351,120220.0,120210.0,0.17151076]
[1753226811176,1.3631351,120220.0,120210.0,0.27576429]
[1753226813880,0.7844151,120220.0,120210.0,0.27576429]
[1753226814070,1.3630951,120220.0,120210.0,0.33294429]
[1753226814274,0.7844151,120220.0,120210.0,0.60766639]
[1753226814875,1.3627551,120220.0,120210.0,0.60766639]
[1753226815081,0.7009451,120220.0,120210.0,0.60766639]
[1753226816579,0.7009451,120220.0,120210.0,0.60766609]
[1753226817179,0.7009451,120220.0,120210.0,1.18626609]
[1753226817482,0.42689115,120220.0,120210.0,1.08201256]
[1753226817681,0.7009451,120220.0,120210.0,1.08201256]
[1753226818681,0.7009451,120220.0,120210.0,1.18626609]
[1753226819081,0.7009451,120220.0,120210.0,1.08201256]
[1753226819381,0.7009451,120220.0,120210.0,1.18626609]
[1753226819678,0.5795651,120220.0,120210.0,1.18626609]
[1753226820183,0.6254151,120220.0,120210.0,1.18626609]
[1753226820384,0.7017751,120220.0,120210.0,1.18626609]
[1753226821584,0.42772115,120220.0,120210.0,1.18626609]
[1753226821785,0.7021951,120220.0,120210.0,1.18626609]
[1753226822984,0.7021951,120220.0,120210.0,1.15640258]
[1753226823179,0.7021951,120220.0,120210.0,0.98994048]
[1753226823381,0.7854051,120220.0,120210.0,0.98994048]
[1753226824183,0.7856651,120220.0,120210.0,0.98994048]
[1753226824384,0.7854051,120220.0,120210.0,0.98019457]
[1753226824585,0.7854051,120220.0,120210.0,0.98994031]
[1753226824781,0.7854051,120220.0,120210.0,0.91555029]
[1753226825189,0.7854051,120220.0,120210.0,1.08185239]
[1753226825578,0.7854051,120220.0,120210.0,0.33711029]
[1753226825783,0.7854051,120220.0,120210.0,1.08185239]
[1753226826885,0.51135115,120220.0,120210.0,1.08185239]
[1753226827080,0.7021951,120220.0,120210.0,0.50341239]
[1753226827290,0.7021951,120220.0,120210.0,1.08181239]
[1753226827690,0.7021951,120220.0,120210.0,1.15620585]
[1753226828087,0.7021951,120220.0,120210.0,0.97498641]
[1753226828294,0.7021951,120220.0,120210.0,1.14128851]
[1753226828693,0.7021951,120220.0,120210.0,0.56292851]
[1753226828893,0.7021951,120220.0,120210.0,1.14128851]
[1753226829094,0.5838417,120220.0,120210.0,1.14128851]
[1753226829393,0.30978775,120220.0,120210.0,1.14128851]
[1753226829584,0.5838417,120220.0,120210.0,1.14124851]
[1753226829781,0.6639817,120220.0,120210.0,1.14124851]
[1753226830394,0.6639817,120220.0,120210.0,0.56292851]
[1753226830593,0.6639817,120220.0,120210.0,1.14124851]
[1753226831793,0.6639817,120220.0,120210.0,0.97494641]
[1753226832697,0.6639817,120220.0,120210.0,0.39662641]
[1753226833098,0.6639817,120220.0,120210.0,0.91535029]
[1753226833296,0.80090867,120220.0,120210.0,0.91535029]
[1753226833498,0.88411867,120220.0,120210.0,0.33711029]
[1753226833700,0.88411867,120220.0,120210.0,0.33711006]
[1753226833997,0.88437867,120220.0,120210.0,0.33711006]
[1753226834504,0.88411867,120220.0,120210.0,0.33711008]
[1753226835199,0.74714485,120220.0,120210.0,0.33711008]
[1753226836300,0.74714485,120220.0,120210.0,0.41150354]
[1753226836900,0.74714485,120220.0,120210.0,0.33711025]
[1753226837200,0.74714485,120220.0,120210.0,0.44136378]
[1753226837793,0.74714485,120220.0,120210.0,0.42836929]
[1753226840400,0.74714485,120220.0,120210.0,0.32411576]
[1753226840699,0.74714485,120220.0,120210.0,0.3371099]
[1753226841902,0.74714485,120220.0,120210.0,0.33710974]
[1753226845400,0.74714485,120220.0,120210.0,0.3241156]
[1753226845604,0.74714485,120220.0,120210.0,0.33710974]
[1753226847801,0.74740485,120220.0,120210.0,0.24591329]
[1753226848001,0.74740485,120220.0,120210.0,0.17150974]
[1753226848202,0.74740485,120220.0,120210.0,0.27567471]
[1753226849297,0.74740485,120220.0,120210.0,0.24592253]
[1753226849505,0.74740485,120220.0,120210.0,0.17150974]
[1753226849708,0.74740485,120220.0,120210.0,0.29136513]
[1753226849903,0.74740485,120220.0,120210.0,0.29136487]
[1753226854009,0.74740485,120220.0,120210.0,0.26862513]
[1753226854211,0.74740485,120220.0,120210.0,0.29136727]
[1753226854709,0.74740485,120220.0,120210.0,0.09915727]
[1753226855102,1.09005639,120220.0,120210.0,0.24612727]
[1753226855298,1.70671503,120220.0,120210.0,0.09915727]
[1753226855503,1.87308304,120220.0,120210.0,0.02474214]
[1753226855808,1.66781639,120220.0,120210.0,0.08426017]
[1753226856608,1.09005639,120220.0,120210.0,0.08426017]
[1753226856811,1.66781639,120220.0,120210.0,0.08426017]
[1753226857612,1.66781639,120220.0,120210.0,0.01499551]
[1753226857804,1.66781639,120220.0,120210.0,0.02474256]
[1753226858204,1.66781639,120220.0,120210.0,0.09915769]
[1753226858405,1.66781639,120220.0,120210.0,0.08425247]
[1753226858610,2.28447503,120220.0,120210.0,0.08425247]
[1753226858812,1.66777639,120220.0,120210.0,0.08425247]
[1753226859308,1.09005639,120220.0,120210.0,0.07125696]
[1753226859515,1.66777639,120220.0,120210.0,0.07125696]
[1753226859915,1.66777639,120220.0,120210.0,0.08425375]
[1753226860113,2.28443503,120220.0,120210.0,0.08425375]
[1753226860816,1.66777639,120220.0,120210.0,0.08425375]
[1753226862513,1.66777639,120220.0,120210.0,0.02474384]
[1753226863212,1.66777639,120220.0,120210.0,0.08425375]
[1753226863518,2.28443503,120220.0,120210.0,0.002]
[1753226863819,2.28443503,120220.0,120210.0,0.024745]
[1753226867115,0.4040221,120210.0,120200.0,0.05950991]
[1753226867418,0.2751098,120190.0,120180.0,0.29278497]
[1753226867621,1.39271556,120190.0,120180.0,0.38002497]
[1753226867815,1.39271556,120190.0,120180.0,0.41075497]
[1753226869122,1.39371556,120190.0,120180.0,0.31259]
[1753226869623,1.39371556,120190.0,120180.0,0.32059]
[1753226869921,1.39371556,120190.0,120180.0,0.42475497]
[1753226872623,1.39271556,120190.0,120180.0,0.41875497]
[1753226872819,1.39371556,120190.0,120180.0,0.42175497]
[1753226873424,0.9826098,120190.0,120180.0,0.42175497]
[1753226873625,1.39345556,120190.0,120180.0,0.42175497]
[1753226874518,1.39345556,120190.0,120180.0,0.58809857]
[1753226874713,1.39345556,120190.0,120180.0,0.4839336]
[1753226875023,0.9823498,120190.0,120180.0,0.4839336]
[1753226875223,1.39345556,120190.0,120180.0,0.4839336]
[1753226875730,1.39345556,120190.0,120180.0,0.31759]
[1753226876415,1.39345556,120190.0,120180.0,0.39198252]
[1753226878821,1.39345556,120190.0,120180.0,0.37710874]
[1753226879126,1.39345556,120190.0,120180.0,0.39985543]
[1753226881427,1.39345556,120190.0,120180.0,0.40960401]
[1753226882222,0.9823498,120190.0,120180.0,0.40960401]
[1753226882423,1.39345556,120190.0,120180.0,0.40960401]
[1753226884033,1.39321556,120190.0,120180.0,0.40960401]
[1753226886029,1.39321556,120190.0,120180.0,0.42447779]
[1753226890230,1.39321556,120190.0,120180.0,0.4017311]
[1753226890432,1.39321556,120190.0,120180.0,0.42447779]
[1753226892134,0.81589556,120190.0,120180.0,0.42447779]
[1753226892432,1.39301556,120190.0,120180.0,0.42447779]
[1753226895735,1.59882844,120190.0,120180.0,0.10310622]
[1753226896536,1.59882844,120190.0,120180.0,0.24935679]
[1753226896938,1.59882844,120190.0,120180.0,0.18974584]
[1753226898335,1.59882844,120190.0,120180.0,0.26413836]
[1753226899442,1.59882844,120190.0,120180.0,0.25438978]
[1753226899635,1.59882844,120190.0,120180.0,0.26413857]
[1753226900036,1.59882844,120190.0,120180.0,0.26413858]
[1753226901238,1.59882844,120190.0,120180.0,0.18974606]
[1753226901438,1.59882844,120190.0,120180.0,0.26430236]
[1753226902634,1.59882844,120190.0,120180.0,0.26430247]
[1753226903642,1.59882844,120190.0,120180.0,0.18974617]
[1753226905540,1.39327556,120190.0,120180.0,0.18974617]
[1753226905743,1.59882844,120190.0,120180.0,0.18974617]
[1753226905942,1.59882844,120190.0,120180.0,0.23646617]
[1753226906739,1.39327556,120190.0,120180.0,0.23646617]
[1753226906945,1.39327556,120190.0,120180.0,0.2961216]
[1753226907146,1.39327556,120190.0,120180.0,0.4166116]
[1753226908048,1.39303556,120190.0,120180.0,0.4166116]
[1753226908544,1.39303556,120190.0,120180.0,0.40686257]
[1753226908737,1.39303556,120190.0,120180.0,0.41661151]
[1753226910543,1.39303556,120190.0,120180.0,0.35695608]
[1753226913949,1.39303556,120190.0,120180.0,0.34720715]
[1753226914149,1.39303556,120190.0,120180.0,0.35695608]
[1753226914351,1.39303556,120190.0,120180.0,0.43151238]
[1753226917653,1.39303556,120190.0,120180.0,0.42176345]
[1753226917950,1.39303556,120190.0,120180.0,0.43151238]
[1753226920756,1.39303556,120190.0,120180.0,0.59785588]
[1753226923851,1.39303556,120190.0,120180.0,0.43151238]
[1753226926853,1.39303556,120190.0,120180.0,0.40876488]
[1753226927053,1.39303556,120190.0,120180.0,0.43151238]
[1753226927258,1.39303556,120190.0,120180.0,0.59785598]
[1753226928066,1.39303556,120190.0,120180.0,0.52329968]
[1753226928359,1.39303556,120190.0,120180.0,0.46112105]
[1753226932259,1.39303556,120190.0,120180.0,0.62746465]
[1753226932458,1.39303556,120190.0,120180.0,0.52329968]
[1753226934166,1.39303556,120190.0,120180.0,0.50055218]
[1753226934364,0.81615556,120190.0,120180.0,0.52329894]
[1753226934566,1.39247556,120190.0,120180.0,0.52329894]
[1753226935867,1.39247556,120190.0,120180.0,0.35695534]
[1753226936072,1.39247556,120190.0,120180.0,0.33420858]
[1753226936268,1.39247556,120190.0,120180.0,0.35695558]
[1753226936865,1.39247556,120190.0,120180.0,0.46112055]
[1753226937067,1.39247556,120190.0,120180.0,0.62746415]
[1753226937367,1.39247556,120190.0,120180.0,0.46112055]